bitfinex/quotes_SOLUSD_20251125
["timestamp","ask_amount","ask_price","bid_price","bid_amount"]
[1764100521574,5.06610769,136.76,136.72,22.18474728]
[1764100521879,5.06610769,136.76,136.72,7.97373997]
[1764100522060,5.06610769,136.76,136.72,11.21373997]
[1764100522460,4.38610769,136.77,136.72,33.22539476]
[1764100522661,4.38610769,136.79,136.74,4.38610769]
[1764100523084,5.06610769,136.79,136.75,0.66]
[1764100523277,0.68,136.79,136.76,7.31207955]
[1764100523477,4.38610769,136.8,136.76,25.59227843]
[1764100523682,7.62610769,136.81,136.77,0.66]
[1764100523882,0.1,136.83,136.79,4.38610769]
[1764100524377,0.1,136.83,136.77,0.66]
[1764100524378,4.38610769,136.81,136.77,3.24]
[1764100524886,5.10610769,136.81,136.77,3.24]
[1764100525267,5.10610769,136.81,136.77,7.97115627]
[1764100525466,4.38610769,136.81,136.77,7.97115627]
[1764100525664,4.38610769,136.8,136.77,7.31115627]
[1764100526084,5.10610769,136.81,136.77,7.97115627]
[1764100526284,4.38610769,136.81,136.77,7.97115627]
[1764100526584,4.38610769,136.81,136.73,16.308864]
[1764100526585,4.38610769,136.79,136.75,3.24]
[1764100526885,4.38610769,136.79,136.74,33.88169654]
[1764100527079,5.10610769,136.79,136.75,5.04610769]
[1764100527289,8.02959909,136.81,136.76,7.31207955]
[1764100527480,4.38610769,136.8,136.76,7.31207955]
[1764100527680,5.10610769,136.8,136.76,7.97207955]
[1764100528080,4.38610769,136.81,136.77,0.66]
[1764100528586,5.10610769,136.81,136.77,0.66]
[1764100528783,4.38610769,136.79,136.76,7.31207955]
[1764100528983,4.38610769,136.78,136.74,7.31314904]
[1764100529187,4.38610769,136.78,136.74,7.97314904]
[1764100529386,4.38610769,136.78,136.74,26.25602164]
[1764100529593,5.10610769,136.79,136.75,0.66]
[1764100529889,0.72,136.79,136.75,0.66]
[1764100530086,11.69645364,136.8,136.75,5.04610769]
[1764100530288,4.38610769,136.78,136.74,7.31314904]
[1764100530478,0.72,136.79,136.74,10.55314904]
[1764100530479,4.38610769,136.77,136.74,10.55314904]
[1764100530868,5.10610769,136.77,136.74,10.55314904]
[1764100531190,5.10610769,136.77,136.74,11.21314904]
[1764100532885,5.10610769,136.77,136.72,22.67109612]
[1764100532886,8.03174784,136.77,136.73,7.31346234]
[1764100533078,4.38610769,136.76,136.73,7.97346234]
[1764100533282,4.38610769,136.76,136.73,7.31346234]
[1764100533283,0.72,136.76,136.73,7.31346234]
[1764100533673,4.38610769,136.75,136.68,0.2]
[1764100533876,4.38610769,136.72,136.68,19.150534]
[1764100534980,11.69965078,136.74,136.69,15.60168866]
[1764100535377,12.41965078,136.74,136.7,0.66]
[1764100535782,11.69886333,136.75,136.7,0.66]
[1764100535979,4.38610769,136.71,136.68,0.2]
[1764100536392,4.38610769,136.7,136.68,0.2]
[1764100536594,5.10610769,136.7,136.68,0.2]
[1764100536772,4.38610769,136.7,136.68,0.2]
[1764100536977,4.38610769,136.7,136.68,7.51631451]
[1764100537179,4.38610769,136.71,136.68,7.51631451]
[1764100537381,12.42085734,136.72,136.68,8.17631451]
[1764100537580,5.10610769,136.71,136.68,7.51631451]
[1764100537779,12.42085734,136.72,136.68,7.51631451]
[1764100538077,0.72,136.71,136.68,7.51631451]
[1764100539105,5.10610769,136.71,136.68,7.51631451]
[1764100539404,5.10610769,136.7,136.68,0.2]
[1764100540002,4.38610769,136.71,136.68,7.51629801]
[1764100540203,5.10610769,136.71,136.68,7.51629801]
[1764100540510,0.72,136.71,136.68,7.51629801]
[1764100540678,4.38610769,136.72,136.69,0.66]
[1764100540876,5.10610769,136.72,136.68,7.51629801]
[1764100541894,11.70040375,136.72,136.68,7.51629801]
[1764100542196,11.70040375,136.72,136.68,0.2]
[1764100542197,5.10610769,136.71,136.68,0.2]
[1764100542380,4.38610769,136.69,136.68,0.2]
[1764100542796,4.38610769,136.7,136.68,0.2]
[1764100543194,5.10610769,136.71,136.68,7.51630329]
[1764100543593,5.10610769,136.71,136.68,0.2]
[1764100543788,5.10610769,136.71,136.68,7.51625744]
[1764100544299,4.38610769,136.72,136.68,8.17625744]
[1764100544482,4.38610769,136.72,136.69,0.66]
[1764100544819,11.7004699,136.72,136.68,7.51625744]
[1764100545097,5.10610769,136.71,136.68,0.2]
[1764100545300,5.10610769,136.71,136.68,7.51622348]
[1764100546496,5.10610769,136.71,136.68,8.17622348]
[1764100546881,4.38610769,136.72,136.69,0.66]
[1764100547190,5.10610769,136.72,136.68,8.17622348]
[1764100548311,0.72,136.72,136.68,8.17622348]
[1764100548522,0.72,136.72,136.68,26.46712192]
[1764100548688,5.10610769,136.72,136.68,26.46712192]
[1764100549091,5.10610769,136.72,136.69,0.66]
[1764100549406,4.38610769,136.72,136.69,7.97533256]
[1764100549593,55.7537584,136.73,136.69,12.36144025]
[1764100549594,48.44,136.73,136.69,12.36144025]
[1764100549797,60.13979944,136.73,136.69,7.31533256]
[1764100550011,5.10610769,136.72,136.69,7.31533256]
[1764100550507,5.10610769,136.72,136.69,7.97533256]
[1764100551205,4.38610769,136.72,136.69,7.97533256]
[1764100551683,60.85979944,136.73,136.69,7.97533256]
[1764100551883,5.10610769,136.72,136.69,7.31533256]
[1764100552504,5.10610769,136.72,136.69,7.97533256]
[1764100552707,0.72,136.72,136.69,7.97533256]
[1764100554213,0.72,136.72,136.69,7.31533256]
[1764100554796,10.84378877,136.72,136.68,7.51620464]
[1764100555008,2.80946176,136.71,136.68,7.51620464]
[1764100555205,0.7,136.71,136.68,0.2]
[1764100555527,2.80946176,136.69,136.68,0.2]
[1764100557115,10.82517199,136.7,136.68,0.2]
[1764100558609,0.7,136.69,136.68,0.2]
[1764100559900,6.04946176,136.7,136.68,0.2]
[1764100560107,6.75946176,136.7,136.68,0.2]
[1764100560307,0.71,136.69,136.68,0.2]
[1764100560992,10.83528588,136.69,136.68,0.2]
[1764100563619,13.36497754,136.7,136.68,0.2]
[1764100563916,0.71,136.69,136.68,0.2]
[1764100564103,3.51946176,136.69,136.68,0.2]
[1764100565315,10.83528588,136.69,136.68,0.2]
[1764100567904,8.80994492,136.68,136.59,21.5480382]
[1764100568104,2.80946176,136.62,136.59,22.2280382]
[1764100568303,2.80946176,136.62,136.59,21.5480382]
[1764100568503,2.80946176,136.62,136.59,29.54911267]
[1764100568718,2.80946176,136.62,136.59,8.00107447]
[1764100569807,3.24,136.64,136.6,8.00050445]
[1764100570007,2.80946176,136.63,136.6,8.00050445]
[1764100570194,3.51946176,136.63,136.6,0.68]
[1764100570397,2.80946176,136.63,136.6,0.68]
[1764100570597,2.80946176,136.62,136.59,0.68]
[1764100570798,3.51946176,136.62,136.57,7.32203756]
[1764100571031,3.51946176,136.62,136.58,7.32161143]
[1764100571800,10.83903429,136.62,136.57,0.68]
[1764100571995,10.83903429,136.62,136.57,8.00222094]
[1764100572236,10.83903429,136.62,136.55,19.11832576]
[1764100572400,10.83903429,136.62,136.55,8.00315788]
[1764100572597,10.83903429,136.62,136.57,0.68]
[1764100575706,2.80946176,136.64,136.61,0.88]
[1764100576026,6.75946176,136.64,136.61,0.2]
[1764100576328,2.80946176,136.63,136.61,0.2]
[1764100577407,10.12878432,136.63,136.61,0.2]
[1764100580528,36.58652477,136.67,136.62,2.80946176]
[1764100580529,2.80946176,136.67,136.62,2.80946176]
[1764100580828,2.80946176,136.71,136.66,2.80946176]
[1764100581206,3.51946176,136.71,136.67,0.68]
[1764100581408,10.83437744,136.71,136.67,7.99678108]
[1764100581719,3.51946176,136.7,136.65,7.99771898]
[1764100582129,3.51946176,136.7,136.66,0.68]
[1764100583528,10.83503892,136.7,136.66,7.99731371]
[1764100584014,8.80994492,136.74,136.66,7.99731371]
[1764100584015,6.75946176,136.73,136.68,2.80946176]
[1764100584204,3.24,136.73,136.69,2.80946176]
[1764100584630,14.07224526,136.75,136.7,0.66]
[1764100585330,3.51946176,136.74,136.7,0.66]
[1764100585536,10.83287387,136.74,136.7,7.97524892]
[1764100585731,10.12287387,136.74,136.7,7.97524892]
[1764100585939,2.80946176,136.74,136.71,0.66]
[1764100586148,10.12263098,136.74,136.71,0.66]
[1764100586439,10.12263098,136.74,136.7,7.97524892]
[1764100586440,10.83263098,136.74,136.7,7.97524892]
[1764100588356,0.71,136.78,136.71,3.46946176]
[1764100588517,6.04946176,136.77,136.72,2.80946176]
[1764100588844,6.04946176,136.77,136.72,3.46946176]
[1764100589046,6.04946176,136.77,136.73,0.66]
[1764100589423,6.75946176,136.77,136.73,7.97337788]
[1764100590619,2.80946176,136.76,136.73,7.97337788]
[1764100592325,2.80946176,136.76,136.74,0.66]
[1764100592651,25.11880892,136.72,136.61,0.86]
[1764100592947,2.80946176,136.62,136.61,0.2]
[1764100594568,6.70073197,136.62,136.61,0.2]
[1764100595551,6.70073197,136.62,136.61,0.86]
[1764100595863,6.70073197,136.62,136.61,0.2]
[1764100600540,14.0203045,136.62,136.61,0.2]
[1764100600735,6.70073197,136.62,136.61,0.2]
[1764100602736,35.31157384,136.67,136.61,0.86]
[1764100602934,6.70073197,136.64,136.61,0.86]
[1764100603137,6.70073197,136.65,136.62,0.66]
[1764100603650,6.70073197,136.64,136.62,0.66]
[1764100603851,6.70073197,136.65,136.62,0.66]
[1764100604252,6.70073197,136.64,136.62,0.66]
[1764100604652,6.70073197,136.64,136.62,7.9795145]
[1764100605037,6.70073197,136.64,136.63,0.66]
[1764100605237,6.70073197,136.65,136.63,0.66]
[1764100605746,6.70073197,136.68,136.63,7.36073197]
[1764100606134,6.70073197,136.69,136.64,7.36073197]
[1764100606336,9.94073197,136.7,136.66,7.31743011]
[1764100606648,6.70073197,136.7,136.66,7.31743011]
[1764100606849,6.70073197,136.7,136.67,0.66]
[1764100607932,14.01603109,136.7,136.67,0.66]
[1764100608353,14.01603109,136.7,136.67,7.97685763]
[1764100608559,6.70073197,136.69,136.67,7.97685763]
[1764100608755,6.70073197,136.69,136.67,0.66]
[1764100608942,7.41073197,136.68,136.64,0.66]
[1764100609140,6.70073197,136.66,136.64,0.66]
[1764100609655,3.24,136.68,136.64,0.66]
[1764100609888,6.70073197,136.67,136.64,0.66]
[1764100610061,6.70073197,136.67,136.64,7.97818825]
[1764100610436,6.70073197,136.67,136.65,0.66]
[1764100612657,3.24,136.68,136.65,7.97789329]
[1764100612658,9.94073197,136.68,136.65,7.97789329]
[1764100613642,9.94073197,136.68,136.66,0.67]
[1764100613842,7.31481852,136.71,136.66,0.67]
[1764100614044,6.70073197,136.7,136.66,0.67]
[1764100614245,6.70073197,136.7,136.67,7.3168947]
[1764100614552,14.88738605,136.72,136.67,37.25651752]
[1764100614735,3.24,136.72,136.68,0.67]
[1764100614941,14.88738605,136.72,136.68,0.67]
[1764100615163,11.64738605,136.71,136.68,0.67]
[1764100615547,11.64738605,136.7,136.67,25.60913147]
[1764100615747,11.64738605,136.69,136.67,7.9868947]
[1764100616261,11.64738605,136.7,136.67,7.3168947]
[1764100616457,11.64738605,136.7,136.67,7.9868947]
[1764100616843,0.71,136.71,136.68,0.67]
[1764100616844,11.64738605,136.71,136.68,0.67]
[1764100617044,11.64738605,136.72,136.68,0.67]
[1764100617249,11.64738605,136.71,136.68,0.67]
[1764100618571,11.64738605,136.71,136.69,7.31582412]
[1764100619879,11.64738605,136.72,136.7,0.72]
[1764100620253,53.16230259,136.76,136.7,0.72]
[1764100620475,11.64738605,136.75,136.7,12.36738605]
[1764100620768,11.64738605,136.75,136.71,25.60163849]
[1764100621073,11.64738605,136.74,136.71,26.32163849]
[1764100621275,11.64738605,136.74,136.72,0.72]
[1764100622158,11.20213843,136.76,136.72,0.72]
[1764100622159,11.64738605,136.75,136.72,0.72]
[1764100622368,7.31022713,136.8,136.73,11.64738605]
[1764100622556,11.64738605,136.78,136.73,11.64738605]
[1764100622754,45.3,136.82,136.74,19.68053509]
[1764100622755,0.1,136.82,136.74,19.68053509]
[1764100622971,0.1,136.82,136.79,11.64738605]
[1764100623145,0.1,136.82,136.8,0.72]
[1764100623349,0.1,136.82,136.78,0.72]
[1764100623350,11.64738605,136.81,136.78,0.72]
[1764100623550,11.74738605,136.82,136.78,0.72]
[1764100623858,0.1,136.82,136.79,11.64738605]
[1764100624259,0.1,136.82,136.8,0.72]
[1764100624756,0.1,136.82,136.81,7.3094072]
[1764100625271,0.1,136.82,136.81,8.0294072]
[1764100628454,0.1,136.82,136.81,7.3094072]
[1764100628657,0.1,136.82,136.81,8.0294072]
[1764100630774,0.1,136.82,136.81,7.3094072]
[1764100630964,0.1,136.82,136.81,8.0294072]
[1764100632477,0.1,136.82,136.81,19.67679325]
[1764100632901,0.1,136.82,136.81,7.3094072]
[1764100633567,0.1,136.82,136.81,8.0294072]
[1764100636783,12.39738605,136.82,136.79,7.310035]
[1764100636964,11.64738605,136.81,136.79,7.310035]
[1764100637159,11.64738605,136.81,136.79,8.030035]
[1764100638665,11.64738605,136.8,136.78,7.31078391]
[1764100639782,11.64738605,136.81,136.78,7.97078391]
[1764100639989,11.64738605,136.8,136.78,26.24830986]
[1764100641886,0.1,136.82,136.79,0.66]
[1764100643091,0.1,136.82,136.8,7.30994152]
[1764100643387,11.64738605,136.81,136.78,23.61987438]
[1764100643566,11.64738605,136.81,136.78,24.31987438]
[1764100643767,11.64738605,136.81,136.78,26.28853633]
[1764100643970,12.34738605,136.81,136.78,26.28853633]
[1764100645291,11.64738605,136.81,136.78,26.28853633]
[1764100646412,12.34738605,136.81,136.78,7.31101038]
[1764100646683,12.34738605,136.81,136.78,8.01101038]
[1764100647562,11.64738605,136.81,136.78,8.01101038]
[1764100650309,0.8,136.82,136.78,8.01101038]
[1764100650486,12.44738605,136.82,136.78,8.01101038]
[1764100650806,0.1,136.82,136.78,25.58853633]
[1764100650987,11.64738605,136.81,136.79,7.31011455]
[1764100651303,11.64738605,136.81,136.78,8.01079521]
[1764100651466,12.34738605,136.81,136.78,8.01079521]
[1764100652391,11.64738605,136.81,136.78,8.01079521]
[1764100653667,11.64738605,136.81,136.76,3.24]
[1764100653873,11.64738605,136.79,136.76,3.94]
[1764100654473,11.64738605,136.79,136.76,3.24]
[1764100654673,11.64738605,136.79,136.77,0.7]
[1764100655400,11.64738605,136.79,136.77,8.01137944]
[1764100656898,11.64738605,136.8,136.77,7.31137944]
[1764100657095,11.64738605,136.79,136.77,8.01137944]
[1764100657979,11.64738605,136.79,136.77,7.31137944]
[1764100658183,12.34738605,136.79,136.76,11.25184929]
[1764100658800,4.38563624,136.79,136.76,11.25184929]
[1764100659101,4.38563624,136.78,136.76,10.55184929]
[1764100659294,5.08563624,136.78,136.75,7.31254833]
[1764100659475,0.7,136.77,136.74,10.55296155]
[1764100659806,4.38563624,136.76,136.73,0.7]
[1764100660116,4.38563624,136.74,136.68,8.01615895]
[1764100660273,4.38563624,136.69,136.64,22.21699135]
[1764100660612,4.38563624,136.68,136.65,11.2579656]
[1764100661505,8.01570011,136.7,136.65,11.2579656]
[1764100661709,4.38563624,136.68,136.65,11.2579656]
[1764100662312,4.38563624,136.66,136.63,0.7]
[1764100662488,4.38563624,136.65,136.63,7.3189119]
[1764100662688,4.38563624,136.67,136.63,8.0189119]
[1764100662892,4.38563624,136.68,136.64,0.7]
[1764100663088,4.38563624,136.67,136.64,0.7]
[1764100663292,4.38563624,136.65,136.62,3.94]
[1764100663696,4.38563624,136.65,136.62,11.25948673]
[1764100663885,4.38563624,136.65,136.63,0.7]
[1764100664086,4.38563624,136.69,136.64,4.38563624]
[1764100664392,4.38563624,136.7,136.65,4.38563624]
[1764100664586,4.38563624,136.71,136.66,4.38563624]
[1764100664801,4.38563624,136.71,136.66,5.08563624]
[1764100664992,4.38563624,136.71,136.67,0.7]
[1764100665598,4.38563624,136.72,136.68,25.60725781]
[1764100665814,4.38563624,136.74,136.69,4.38563624]
[1764100666031,4.38563624,136.74,136.69,5.08563624]
[1764100666177,4.38563624,136.75,136.7,5.08563624]
[1764100666586,12.34316239,136.74,136.69,12.34316239]
[1764100666811,12.34316239,136.74,136.7,0.7]
[1764100667316,11.64316239,136.75,136.7,12.34316239]
[1764100668020,12.34316239,136.75,136.71,8.01475385]
[1764100668182,0.7,136.75,136.71,8.01475385]
[1764100668506,11.64316239,136.74,136.71,8.01475385]
[1764100669215,12.34316239,136.75,136.71,8.01475385]
[1764100670715,11.64316239,136.74,136.71,8.01475385]
[1764100671096,12.34316239,136.74,136.71,7.31475385]
[1764100671409,12.34316239,136.73,136.71,7.31475385]
[1764100671614,11.64316239,136.74,136.71,8.01475385]
[1764100671918,12.34316239,136.74,136.71,8.01475385]
[1764100672313,11.64316239,136.75,136.72,0.7]
[1764100672503,12.34316239,136.75,136.71,8.01475385]
[1764100673494,0.7,136.75,136.71,8.01475385]
[1764100673804,12.34316239,136.75,136.71,8.01475385]
[1764100674516,12.34316239,136.75,136.71,26.30163849]
[1764100676316,12.34316239,136.75,136.72,0.71]
[1764100676621,7.38648925,136.75,136.72,0.71]
[1764100676819,6.68648925,136.77,136.72,7.39648925]
[1764100677124,6.68648925,136.76,136.72,0.71]
[1764100677319,6.68648925,136.76,136.73,0.71]
[1764100677917,6.68648925,136.76,136.74,7.31314904]
[1764100678226,7.36648925,136.75,136.71,7.31452343]
[1764100678395,6.68648925,136.74,136.71,8.02452343]
[1764100678593,6.68648925,136.74,136.71,26.31140807]
[1764100678911,0.68,136.75,136.71,26.31140807]
[1764100678912,7.36648925,136.75,136.71,26.31140807]
[1764100680425,6.68648925,136.75,136.72,0.66]
[1764100680607,7.34648925,136.75,136.72,0.66]
[1764100680928,0.66,136.74,136.71,25.60140807]
[1764100681222,7.97090559,136.79,136.72,7.34648925]
[1764100681424,6.68648925,136.77,136.72,7.34648925]
[1764100681607,10.58648925,136.78,136.73,7.34648925]
[1764100681811,7.34648925,136.78,136.73,10.58648925]
[1764100682012,7.34648925,136.78,136.75,7.31261425]
[1764100682725,6.68648925,136.79,136.76,0.66]
[1764100682930,6.68648925,136.78,136.75,26.25414989]
[1764100683106,0.66,136.79,136.75,26.25414989]
[1764100683304,6.68648925,136.78,136.75,26.25414989]
[1764100683720,7.34648925,136.78,136.75,7.31261425]
[1764100683907,6.68648925,136.78,136.75,7.97261425]
[1764100684312,6.68648925,136.79,136.76,0.66]
[1764100684822,7.34648925,136.79,136.76,0.66]
[1764100685127,7.34648925,136.79,136.75,25.59414989]
[1764100685314,7.34648925,136.78,136.75,7.31261425]
[1764100685626,6.68648925,136.77,136.75,7.31261425]
[1764100685828,7.34648925,136.77,136.75,7.31261425]
[1764100686029,0.66,136.76,136.74,7.31291189]
[1764100686214,6.68648925,136.75,136.72,7.31421884]
[1764100686722,7.34648925,136.75,136.72,7.31421884]
[1764100687118,6.68648925,136.75,136.72,7.31421884]
[1764100687433,7.34648925,136.74,136.7,10.55475852]
[1764100687798,7.34648925,136.74,136.7,11.21475852]
[1764100688520,3.46874771,136.74,136.7,29.5029809]
[1764100688905,0.66,136.73,136.7,28.8429809]
[1764100689100,2.80874771,136.74,136.7,28.8429809]
[1764100689306,3.46874771,136.74,136.71,0.66]
[1764100689504,2.96874771,136.74,136.71,0.66]
[1764100690115,2.80874771,136.77,136.72,2.80874771]
[1764100690325,6.70874771,136.79,136.74,25.59602164]
[1764100690725,6.70874771,136.79,136.75,0.66]
[1764100691215,2.80874771,136.78,136.75,0.66]
[1764100691411,3.46874771,136.79,136.76,7.31207955]
[1764100692530,2.80874771,136.8,136.76,26.25227843]
[1764100692718,3.46874771,136.8,136.76,26.25227843]
[1764100693234,3.24,136.81,136.77,0.66]
[1764100693415,6.70874771,136.81,136.78,7.31101038]
[1764100693745,3.46874771,136.8,136.78,7.31101038]
[1764100694232,3.46874771,136.8,136.77,7.31129096]
[1764100694406,2.80874771,136.79,136.77,7.31129096]
[1764100695410,3.46874771,136.8,136.77,0.66]
[1764100696010,3.46874771,136.8,136.76,0.66]
[1764100697034,3.46874771,136.8,136.77,7.31154492]
[1764100698334,2.80874771,136.8,136.77,7.31154492]
[1764100698530,2.80874771,136.8,136.77,7.97154492]
[1764100698735,3.46874771,136.8,136.77,7.97154492]
[1764100701233,2.80874771,136.8,136.77,7.97154492]
[1764100701445,2.80874771,136.8,136.78,0.66]
[1764100702140,2.80874771,136.8,136.77,26.25040724]
[1764100702442,0.1,136.82,136.78,3.46874771]
[1764100702736,0.1,136.82,136.81,2.80874771]
[1764100702935,0.1,136.82,136.81,3.46874771]
[1764100703129,0.1,136.82,136.81,0.66]
[1764100703331,0.1,136.82,136.79,3.24]
[1764100703640,3.58874771,136.82,136.79,0.71]
[1764100704246,2.90874771,136.82,136.77,31.63915495]
[1764100704543,3.58874771,136.82,136.78,0.71]
[1764100705247,3.58874771,136.82,136.79,7.31047591]
[1764100705538,2.80874771,136.8,136.75,18.28077503]
[1764100705725,2.80874771,136.79,136.75,18.28077503]
[1764100705928,2.80874771,136.78,136.75,18.28077503]
[1764100706128,2.80874771,136.78,136.75,7.31235811]
[1764100706331,2.80874771,136.78,136.75,8.02235811]
[1764100706645,2.80874771,136.78,136.75,26.30389375]
[1764100706831,2.80874771,136.78,136.75,25.59389375]
[1764100707018,0.68,136.79,136.76,0.71]
[1764100707019,3.48874771,136.79,136.76,0.71]
[1764100707225,3.48874771,136.79,136.77,7.31154492]
[1764100707452,3.48874771,136.79,136.76,8.02186605]
[1764100707842,2.80874771,136.79,136.76,8.02186605]
[1764100709144,3.48874771,136.8,136.77,0.71]
[1764100709444,3.48874771,136.8,136.77,8.02119527]
[1764100709962,3.58874771,136.82,136.78,0.71]
[1764100710526,2.90874771,136.82,136.78,0.71]
[1764100711033,0.1,136.82,136.79,2.80874771]
[1764100711230,0.1,136.82,136.8,7.30994152]
[1764100711425,0.1,136.82,136.8,10.82868923]
[1764100711631,0.1,136.82,136.81,0.71]
[1764100711944,3.28874771,136.84,136.81,0.71]
[1764100712242,3.28874771,136.84,136.8,25.58479532]
[1764100712431,3.28874771,136.84,136.81,0.71]
[1764100713031,3.28874771,136.84,136.8,25.58479532]
[1764100713231,3.28874771,136.84,136.8,26.29479532]
[1764100714152,3.48874771,136.83,136.8,26.29479532]
[1764100714545,3.48874771,136.83,136.8,8.01994152]
[1764100715846,2.80874771,136.83,136.8,8.01994152]
[1764100716348,3.48874771,136.83,136.8,8.01994152]
[1764100717152,3.48874771,136.82,136.74,0.71]
[1764100717341,2.80874771,136.79,136.75,0.71]
[1764100717651,2.80874771,136.8,136.75,3.51874771]
[1764100717953,2.80874771,136.8,136.76,7.31207955]
[1764100718141,2.80874771,136.8,136.76,26.30227843]
[1764100718450,2.80874771,136.8,136.77,0.71]
[1764100719529,2.80874771,136.8,136.77,8.02109448]
[1764100721456,3.24,136.82,136.76,25.59227843]
[1764100721636,2.80874771,136.81,136.77,0.71]
[1764100721954,3.48874771,136.81,136.77,0.71]
[1764100723036,2.80874771,136.81,136.78,7.31101038]
[1764100723241,2.80874771,136.82,136.78,7.31101038]
[1764100723460,3.48874771,136.82,136.79,0.71]
[1764100723644,2.80874771,136.82,136.79,0.71]
[1764100724760,51.24874771,136.83,136.79,0.71]
[1764100725060,51.92874771,136.83,136.8,7.30994152]
[1764100726254,51.24874771,136.83,136.8,7.30994152]
[1764100726458,51.24874771,136.83,136.8,8.01994152]
[1764100727536,6.04874771,136.84,136.81,0.71]
[1764100727738,3.24,136.84,136.81,0.71]
[1764100728138,3.24,136.84,136.81,3.51874771]
[1764100728344,7.98592144,136.88,136.81,3.51874771]
[1764100728642,6.04874771,136.87,136.82,0.71]
[1764100728841,2.80874771,136.86,136.82,0.71]
[1764100729243,2.80874771,136.86,136.83,7.30833881]
[1764100729846,2.80874771,136.86,136.83,8.01833881]
[1764100730682,45.2,136.91,136.83,25.57918584]
[1764100730837,2.80874771,136.88,136.84,0.71]
[1764100731039,2.80874771,136.88,136.83,28.38793355]
[1764100731040,2.80874771,136.86,136.83,25.57918584]
[1764100731268,2.80874771,136.87,136.84,0.71]
[1764100732245,3.48874771,136.88,136.84,0.71]
[1764100732568,2.80874771,136.87,136.84,0.71]
[1764100733267,2.80874771,136.89,136.85,7.30727073]
[1764100733447,3.51874771,136.88,136.85,7.30727073]
[1764100733649,3.51874771,136.88,136.85,8.02727073]
[1764100734674,2.80874771,136.87,136.85,8.02727073]
[1764100735878,3.51874771,136.86,136.82,26.30062607]
[1764100736055,2.80874771,136.85,136.82,26.30062607]
[1764100736248,2.80874771,136.85,136.83,0.72]
[1764100736679,4.38155113,136.86,136.83,0.72]
[1764100737477,4.38155113,136.86,136.83,8.02799492]
[1764100737663,4.38155113,136.86,136.83,7.30799492]
[1764100737969,5.09155113,136.85,136.83,7.30799492]
[1764100738155,4.38155113,136.85,136.83,7.30799492]
[1764100738785,5.09155113,136.85,136.83,7.30799492]
[1764100739077,4.38155113,136.84,136.82,7.30866056]
[1764100739258,4.38155113,136.83,136.82,7.30866056]
[1764100739458,4.38155113,136.83,136.81,8.02921139]
[1764100739679,4.38155113,136.84,136.81,8.02921139]
[1764100740276,0.72,136.85,136.81,7.30921139]
[1764100740481,4.38155113,136.84,136.81,7.30921139]
[1764100740778,4.38155113,136.84,136.82,0.67]
[1764100741470,4.38155113,136.84,136.81,0.67]
[1764100741790,4.38155113,136.85,136.82,0.67]
[1764100742155,7.30588702,136.88,136.82,0.67]
[1764100742380,4.38155113,136.87,136.82,0.67]
[1764100742671,4.38155113,136.86,136.82,0.67]
[1764100743179,4.38155113,136.87,136.82,0.67]
[1764100743586,4.38155113,136.87,136.83,25.57918584]
[1764100743959,4.38155113,136.87,136.84,0.67]
[1764100744486,4.38155113,136.86,136.84,0.67]
[1764100744670,3.96,136.88,136.84,0.67]
[1764100745001,4.38155113,136.86,136.84,0.67]
[1764100745690,3.96,136.88,136.85,7.30727073]
[1764100745864,4.38155113,136.88,136.85,7.30727073]
[1764100746284,4.38155113,136.88,136.86,0.67]
[1764100746585,52.50425395,136.91,136.86,0.67]
[1764100746586,4.38155113,136.89,136.86,0.67]
[1764100747081,0.1,136.93,136.87,4.38155113]
[1764100747283,4.48155113,136.93,136.87,4.38155113]
[1764100747583,4.38155113,136.9,136.86,3.91]
[1764100747776,4.38155113,136.9,136.87,7.30620296]
[1764100748080,4.38155113,136.9,136.87,26.24171037]
[1764100749603,4.38155113,136.89,136.86,10.54656357]
[1764100749886,4.38155113,136.87,136.86,7.30656357]
[1764100750194,4.38155113,136.88,136.86,7.30656357]
[1764100750997,4.38155113,136.88,136.86,7.97656357]
[1764100751370,4.38155113,136.88,136.86,7.30656357]
[1764100751963,8.02467035,136.9,136.86,7.30656357]
[1764100752177,4.38155113,136.88,136.86,7.30656357]
[1764100754190,4.38155113,136.88,136.86,0.67]
[1764100754408,4.38155113,136.89,136.86,0.67]
[1764100754569,48.44,136.9,136.85,26.24524914]
[1764100754570,4.38155113,136.88,136.85,26.24524914]
[1764100754909,4.38155113,136.86,136.84,16.308864]